bitfinex/quotes_SOLUSD_20250903
["timestamp","ask_amount","ask_price","bid_price","bid_amount"]
[1756902696290,37.67,210.06,209.99,5.06212525]
[1756902696291,37.67,210.06,210.04,2.84818816]
[1756902696482,37.0,210.06,210.05,2.84818816]
[1756902696796,5.43019219,210.08,210.05,2.84818816]
[1756902696988,37.67,210.07,210.05,2.84818816]
[1756902697375,37.67,210.07,210.01,0.3]
[1756902697582,37.0,210.06,210.05,2.84818816]
[1756902698584,37.0,210.06,210.01,0.3]
[1756902698895,37.0,210.06,210.05,2.84818816]
[1756902699103,36.98,210.07,210.05,2.84818816]
[1756902699398,37.65,210.07,210.05,2.84818816]
[1756902699600,37.65,210.07,210.0,0.3]
[1756902699809,37.65,210.07,210.05,2.84818816]
[1756902700103,37.65,210.06,210.0,0.3]
[1756902700301,36.98,210.06,210.05,2.84818816]
[1756902700674,5.43011328,210.08,210.05,2.84818816]
[1756902700874,37.65,210.07,210.0,0.3]
[1756902701098,37.65,210.07,210.06,2.84818816]
[1756902701306,37.65,210.07,210.05,2.84818816]
[1756902701875,37.65,210.07,210.04,2.84818816]
[1756902702074,37.65,210.07,210.05,2.84818816]
[1756902702309,36.98,210.07,210.05,2.84818816]
[1756902702482,42.44044424,210.07,210.05,2.84818816]
[1756902703197,5.46044424,210.07,210.05,2.84818816]
[1756902703394,0.76,210.1,210.06,2.84818816]
[1756902703605,37.02,210.1,210.09,2.84818816]
[1756902704623,0.06,210.1,210.09,2.84818816]
[1756902706595,0.06,210.1,210.05,5.06076011]
[1756902706819,0.06,210.1,210.09,2.84818816]
[1756902707219,0.06,210.1,210.08,2.84818816]
[1756902707521,0.06,210.1,210.09,2.84818816]
[1756902707522,37.72,210.1,210.09,2.84818816]
[1756902708221,0.06,210.1,210.09,2.84818816]
[1756902708995,0.76,210.1,210.09,2.84818816]
[1756902709215,0.06,210.1,210.09,2.84818816]
[1756902709420,0.06,210.1,210.09,0.3]
[1756902709602,0.06,210.1,210.09,3.14818816]
[1756902709792,0.06,210.1,210.09,7.90805297]
[1756902710520,0.06,210.1,210.09,2.84818816]
[1756902710823,0.06,210.1,210.09,7.90805297]
[1756902711208,0.06,210.1,210.09,7.60805297]
[1756902711407,0.06,210.1,210.09,7.90805297]
[1756902712419,0.06,210.1,210.09,3.14818816]
[1756902712716,0.06,210.13,210.09,31.20046765]
[1756902712916,0.7,210.23,210.12,14.2409408]
[1756902713121,7.01543219,210.22,210.21,2.84818816]
[1756902713424,7.71543219,210.22,210.21,2.84818816]
[1756902713804,7.71543219,210.22,210.14,0.3]
[1756902714012,7.01846295,210.21,210.2,2.84818816]
[1756902714336,0.7,210.23,210.2,2.84818816]
[1756902714522,0.7,210.25,210.22,2.84818816]
[1756902714723,7.71995091,210.24,210.22,2.84818816]
[1756902714933,7.01995091,210.23,210.22,2.84818816]
[1756902715128,7.71995091,210.23,210.22,2.84818816]
[1756902716605,7.72110295,210.23,210.22,2.84818816]
[1756902717027,7.72110295,210.23,210.17,5.05801051]
[1756902717214,0.7,210.23,210.22,2.84818816]
[1756902717522,0.7,210.23,210.2,2.84818816]
[1756902717523,12.47974512,210.23,210.2,2.84818816]
[1756902717707,7.72305008,210.22,210.2,2.84818816]
[1756902717912,7.02305008,210.21,210.2,2.84818816]
[1756902718109,4.21152504,210.21,210.2,2.84818816]
[1756902718313,7.72350064,210.21,210.2,2.84818816]
[1756902718820,4.2119756,210.21,210.2,2.84818816]
[1756902719030,7.7239512,210.21,210.2,2.84818816]
[1756902719326,0.7,210.26,210.2,2.84818816]
[1756902719526,0.7,210.26,210.18,5.02161208]
[1756902719527,7.02569762,210.25,210.24,2.84818816]
[1756902720324,0.7,210.29,210.24,2.84818816]
[1756902720532,7.02871592,210.28,210.22,0.3]
[1756902720825,0.7,210.29,210.22,0.3]
[1756902720826,3.51435796,210.27,210.22,0.3]
[1756902721011,0.7,210.29,210.23,5.05669504]
[1756902721338,3.51435822,210.28,210.23,5.05669504]
[1756902721510,0.06,210.31,210.24,0.3]
[1756902721705,3.51282812,210.3,210.24,3.14818816]
[1756902722042,0.06,210.31,210.25,0.3]
[1756902722537,0.06,210.31,210.26,26.0]
[1756902722818,0.06,210.31,210.3,2.84818816]
[1756902723024,0.06,210.31,210.3,7.6032999]
[1756902723404,0.06,210.31,210.3,7.9032999]
[1756902723708,0.76,210.31,210.25,1.90580556]
[1756902723913,0.76,210.31,210.3,2.84818816]
[1756902724311,0.06,210.31,210.3,2.84818816]
[1756902729201,0.06,210.31,210.26,0.3]
[1756902729434,0.06,210.31,210.24,84.45646621]
[1756902729726,0.06,210.31,210.3,2.84818816]
[1756902730230,0.76,210.31,210.3,2.84818816]
[1756902730531,0.06,210.31,210.3,3.14818816]
[1756902731037,0.06,210.31,210.3,82.54818816]
[1756902731207,0.06,210.31,210.3,79.7]
[1756902731412,0.06,210.31,210.3,82.54818816]
[1756902731616,0.06,210.31,210.3,87.3032999]
[1756902732540,0.06,210.31,210.3,82.54818816]
[1756902733550,0.06,210.31,210.3,84.14414116]
[1756902733943,0.06,210.31,210.3,88.8992529]
[1756902734339,0.06,210.31,210.3,9.1992529]
[1756902735056,0.06,210.31,210.3,9.4992529]
[1756902735225,0.06,210.31,210.3,46.4992529]
[1756902736140,0.06,210.31,210.3,126.1992529]
[1756902736890,0.06,210.34,210.3,138.08703226]
[1756902737154,0.06,210.34,210.33,4.44414116]
[1756902737658,0.06,210.34,210.33,9.19857466]
[1756902738432,0.78,210.34,210.27,79.7]
[1756902738653,0.72,210.33,210.28,4.44414116]
[1756902738856,4.50414116,210.34,210.29,4.44414116]
[1756902738857,0.72,210.32,210.29,4.44414116]
[1756902739328,4.50414116,210.34,210.23,37.0]
[1756902739329,0.72,210.31,210.27,4.44414116]
[1756902739529,4.75511174,210.3,210.28,4.44414116]
[1756902739729,0.72,210.29,210.23,41.7566777]
[1756902740940,0.72,210.29,210.28,4.44414116]
[1756902741542,5.47533786,210.29,210.28,4.44414116]
[1756902741965,0.72,210.29,210.28,4.44414116]
[1756902742674,0.72,210.32,210.28,4.44414116]
[1756902742972,0.72,210.32,210.31,4.44414116]
[1756902743653,0.72,210.32,210.24,4.74414116]
[1756902743870,0.72,210.32,210.31,4.44414116]
[1756902744259,0.72,210.32,210.29,4.44414116]
[1756902744443,0.72,210.31,210.29,4.44414116]
[1756902744644,0.72,210.3,210.29,4.44414116]
[1756902745873,0.72,210.33,210.29,4.44414116]
[1756902746050,0.72,210.32,210.3,4.44414116]
[1756902746845,0.06,210.34,210.31,4.44414116]
[1756902747149,0.06,210.34,210.33,4.44414116]
[1756902747754,0.78,210.34,210.33,4.44414116]
[1756902748163,0.06,210.34,210.33,4.44414116]
[1756902751865,0.06,210.34,210.33,9.19857466]
[1756902754260,0.06,210.34,210.33,9.49857466]
[1756902756277,0.06,210.34,210.33,107.23830983]
[1756902756480,0.72,210.44,210.4,4.44414116]
[1756902756684,7.03053384,210.43,210.38,37.12]
[1756902756887,3.51526692,210.42,210.38,37.42]
[1756902757091,0.72,210.44,210.38,37.42]
[1756902757466,0.2,210.45,210.39,0.3]
[1756902757785,0.2,210.45,210.44,4.44414116]
[1756902758406,0.2,210.45,210.44,9.19608945]
[1756902760273,0.2,210.45,210.44,9.49608945]
[1756902760979,0.2,210.45,210.44,9.19608945]
[1756902761776,0.2,210.45,210.44,46.27608945]
[1756902763975,0.2,210.45,210.44,46.29608945]
[1756902764182,0.2,210.45,210.44,4.75194829]
[1756902764405,0.2,210.45,210.44,46.29608945]
[1756902770912,0.2,210.45,210.44,22.79168346]
[1756902771199,0.2,210.45,210.44,60.13168346]
[1756902771901,0.2,210.45,210.44,22.79168346]
[1756902772096,0.2,210.45,210.44,59.83168346]
[1756902773514,0.92,210.45,210.44,41.79194829]
[1756902773819,0.92,210.45,210.44,46.23608945]
[1756902774008,0.2,210.45,210.44,46.23608945]
[1756902776003,0.2,210.45,210.43,26.0]
[1756902776004,0.92,210.45,210.43,26.0]
[1756902776310,0.72,210.44,210.43,37.02]
[1756902776491,0.72,210.44,210.4,26.0]
[1756902776687,0.72,210.43,210.41,37.02]
[1756902776889,0.2,210.45,210.41,37.02]
[1756902777109,0.92,210.45,210.41,37.02]
[1756902777497,0.2,210.45,210.44,4.44414116]
[1756902777705,0.2,210.45,210.44,41.48414116]
[1756902778086,0.92,210.45,210.4,26.0]
[1756902778307,0.72,210.44,210.43,4.44414116]
[1756902778510,0.72,210.44,210.43,41.46414116]
[1756902779408,0.72,210.44,210.43,37.02]
[1756902779610,0.72,210.44,210.43,41.46414116]
[1756902779820,0.72,210.44,210.42,4.44414116]
[1756902779983,0.2,210.45,210.42,4.44414116]
[1756902780404,0.2,210.45,210.41,41.48414116]
[1756902780591,0.72,210.44,210.42,4.44414116]
[1756902780792,0.72,210.43,210.42,4.44414116]
[1756902782308,0.72,210.43,210.42,46.21654112]
[1756902782685,0.2,210.45,210.42,46.21654112]
[1756902782893,0.2,210.45,210.44,4.44414116]
[1756902783088,0.2,210.45,210.44,37.02]
[1756902783397,0.2,210.45,210.44,41.46414116]
[1756902784316,0.2,210.45,210.44,46.21608945]
[1756902786107,0.2,210.45,210.44,46.19608945]
[1756902786323,0.92,210.45,210.44,46.19608945]
[1756902787018,0.92,210.45,210.44,4.44414116]
[1756902787324,0.92,210.45,210.44,41.44414116]
[1756902788218,0.92,210.45,210.44,46.19608945]
[1756902788219,0.2,210.45,210.44,46.19608945]
[1756902788427,0.92,210.45,210.44,46.19608945]
[1756902790301,0.2,210.45,210.44,46.19608945]
[1756902790800,0.2,210.45,210.44,139.79168346]
[1756902791332,0.06,210.48,210.44,139.79168346]
[1756902791333,0.06,210.48,210.47,39.59559401]
[1756902791624,0.06,210.48,210.47,165.16387633]
[1756902791810,0.06,210.48,210.47,165.46387633]
[1756902792010,0.06,210.48,210.47,167.36777695]
[1756902792607,0.06,210.48,210.47,172.11904791]
[1756902793813,0.2,210.53,210.47,172.11904791]
[1756902793814,0.2,210.53,210.51,26.0]
[1756902794004,0.2,210.53,210.52,41.42414116]
[1756902794205,0.2,210.53,210.51,105.7]
[1756902794497,0.2,210.53,210.52,41.44414116]
[1756902795423,0.9,210.53,210.52,41.44414116]
[1756902795613,0.9,210.53,210.52,39.83868812]
[1756902796115,0.9,210.53,210.52,44.58883062]
[1756902796519,0.9,210.53,210.51,79.7]
[1756902796718,0.2,210.53,210.52,37.0]
[1756902797026,0.2,210.53,210.52,39.83868812]
[1756902797225,0.9,210.53,210.52,39.83868812]
[1756902797425,0.9,210.53,210.52,37.0]
[1756902798713,0.9,210.53,210.46,79.7]
[1756902798911,0.7,210.52,210.48,2.83868812]
[1756902799218,0.7,210.51,210.49,37.0]
[1756902799410,0.7,210.5,210.48,37.02]
[1756902799613,0.7,210.49,210.46,2.83868812]
[1756902799824,0.7,210.49,210.47,37.02]
[1756902800112,0.7,210.48,210.47,37.02]
[1756902800535,0.7,210.48,210.45,2.83868812]
[1756902800831,2.83868812,210.5,210.45,39.85868812]
[1756902800832,0.7,210.47,210.45,39.85868812]
[1756902801005,0.7,210.46,210.45,39.85868812]
[1756902802224,0.7,210.49,210.45,39.85868812]
[1756902802415,0.7,210.48,210.47,2.83868812]
[1756902803640,0.7,210.48,210.41,79.7]
[1756902803819,0.7,210.47,210.43,2.83868812]
[1756902804015,0.7,210.46,210.43,2.83868812]
[1756902804213,0.7,210.46,210.44,2.83868812]
[1756902804416,0.7,210.45,210.44,2.83868812]
[1756902804838,0.7,210.48,210.44,44.63048881]
[1756902805036,0.7,210.48,210.47,2.83868812]
[1756902808541,0.7,210.5,210.47,7.58995908]
[1756902808758,0.7,210.49,210.47,4.75127096]
[1756902808924,4.94996541,210.53,210.47,4.75127096]
[1756902809122,0.7,210.52,210.46,4.7514691]
[1756902809326,0.7,210.51,210.46,4.7514691]
[1756902809546,0.7,210.5,210.46,4.7514691]
[1756902809927,0.7,210.5,210.49,2.83868812]
[1756902811734,0.7,210.52,210.49,2.83868812]
[1756902812047,0.7,210.51,210.5,2.83868812]
[1756902812756,0.7,210.51,210.49,2.83868812]
[1756902812925,0.7,210.5,210.49,2.83868812]
[1756902813544,0.7,210.5,210.45,116.72]
[1756902813746,0.7,210.49,210.45,82.53868812]
[1756902814053,0.7,210.48,210.45,82.53868812]
[1756902814233,0.7,210.48,210.44,41.77176222]
[1756902814234,0.7,210.47,210.44,41.77176222]
[1756902814431,0.7,210.46,210.44,4.75176222]
[1756902814738,2.83868812,210.48,210.45,0.03]
[1756902814934,2.83868812,210.47,210.45,0.03]
[1756902815348,0.7,210.46,210.45,0.03]
[1756902816059,3.53868812,210.46,210.45,0.03]
[1756902816954,8.29018484,210.46,210.45,0.03]
[1756902817254,3.53868812,210.46,210.45,0.03]
[1756902817828,8.29018484,210.46,210.45,0.03]
[1756902818951,39.59559401,210.44,210.43,0.03]
[1756902819252,13.59559401,210.43,210.32,4.75461088]
[1756902819439,2.83868812,210.35,210.32,4.75461088]
[1756902820054,2.83868812,210.35,210.31,0.03]
[1756902820359,3.53868812,210.35,210.31,4.78488564]
[1756902822154,3.53868812,210.35,210.31,0.03]
[1756902822551,2.83868812,210.37,210.31,2.86868812]
[1756902822749,2.83868812,210.38,210.33,2.83868812]
[1756902823153,3.51868812,210.38,210.33,2.83868812]
[1756902823658,3.51868812,210.38,210.32,3.19868812]
[1756902824055,2.83868812,210.37,210.32,3.19868812]
[1756902824258,3.51868812,210.38,210.33,4.7544335]
[1756902824557,0.68,210.41,210.33,7.59312162]
[1756902824740,2.83868812,210.39,210.34,79.73]
[1756902824940,3.51868812,210.39,210.34,79.73]
[1756902825153,2.83868812,210.38,210.34,79.73]
[1756902825641,3.51868812,210.38,210.34,84.48407827]
[1756902826038,63.04,210.45,210.34,79.73]
[1756902826039,2.83868812,210.36,210.34,79.73]
[1756902826252,0.68,210.35,210.34,0.03]
[1756902826762,2.83868812,210.36,210.34,0.03]
[1756902827258,3.51868812,210.36,210.34,0.03]
[1756902828565,2.83868812,210.36,210.34,0.03]
[1756902828770,2.83868812,210.37,210.34,0.03]
[1756902828972,63.04,210.43,210.34,0.03]
[1756902828973,2.83868812,210.39,210.34,0.03]
[1756902829263,0.68,210.42,210.38,2.83868812]
[1756902829841,0.68,210.42,210.37,2.83868812]
[1756902830655,0.68,210.42,210.38,4.75330354]
[1756902831164,0.68,210.42,210.38,7.59199166]
[1756902831468,3.51868812,210.41,210.37,4.75351743]
[1756902831653,0.68,210.4,210.37,4.75351743]
[1756902831965,0.68,210.4,210.36,2.83868812]
[1756902831966,0.68,210.39,210.36,4.75373227]
[1756902832154,3.51868812,210.41,210.36,7.59242039]
[1756902832463,0.68,210.43,210.39,4.75307761]
[1756902832763,0.68,210.43,210.39,7.59176573]
[1756902832964,0.74,210.43,210.39,7.59176573]
[1756902833561,3.57868812,210.43,210.39,4.75307761]
[1756902833950,2.89868812,210.43,210.38,4.7532799]
[1756902834152,0.68,210.42,210.38,4.7532799]
[1756902834361,0.68,210.41,210.38,4.7532799]
[1756902834668,0.68,210.4,210.35,2.83868812]
[1756902835146,0.68,210.4,210.35,82.53868812]
[1756902835567,0.68,210.4,210.35,87.29266957]
[1756902835769,0.68,210.4,210.36,2.83868812]
[1756902836672,0.68,210.4,210.36,7.59228244]
[1756902840059,0.68,210.39,210.36,4.75359432]
[1756902840380,0.68,210.38,210.34,0.03]
[1756902840688,0.06,210.43,210.37,2.83868812]
[1756902840857,0.06,210.43,210.41,2.83868812]
[1756902841056,0.06,210.43,210.42,2.83868812]
[1756902841256,0.06,210.43,210.38,117.08]
[1756902841257,0.06,210.43,210.39,0.36]
[1756902841455,0.06,210.43,210.38,116.72]
[1756902841456,0.06,210.43,210.4,0.36]
[1756902841785,0.06,210.43,210.42,2.83868812]
[1756902842154,0.06,210.43,210.42,7.59108808]
[1756902842381,0.06,210.43,210.42,7.95108808]
[1756902842770,0.74,210.43,210.39,1.90480726]
[1756902842966,0.74,210.43,210.4,4.75285171]
[1756902842967,0.06,210.43,210.4,4.75285171]
[1756902843161,0.06,210.43,210.4,7.59153983]
[1756902844054,3.51868812,210.42,210.36,82.53868812]
[1756902844260,3.51868812,210.41,210.36,7.59238635]
[1756902844460,3.51868812,210.4,210.36,4.75369823]
[1756902844676,0.68,210.39,210.36,4.75369823]
[1756902844875,3.51868812,210.41,210.36,4.75369823]
[1756902845067,0.68,210.4,210.36,4.75369823]
[1756902845259,2.83868812,210.41,210.36,4.75369823]
[1756902845458,0.68,210.4,210.36,4.75369823]
[1756902845680,3.51868812,210.39,210.34,0.03]
[1756902845890,2.83868812,210.37,210.34,0.03]
[1756902846350,0.68,210.36,210.34,0.03]
[1756902850995,0.68,210.35,210.34,0.03]
[1756902851783,0.66,210.37,210.34,0.03]
[1756902851953,2.83868812,210.38,210.34,0.03]
[1756902852156,0.66,210.36,210.34,0.03]
[1756902855394,0.66,210.35,210.34,0.03]
[1756902857280,5.10479507,210.35,210.34,0.03]
[1756902858166,0.66,210.35,210.34,0.03]
[1756902858763,5.10479507,210.38,210.34,0.03]
[1756902858966,0.66,210.38,210.34,0.03]
[1756902859292,0.66,210.4,210.36,4.75375546]
[1756902859501,4.44479507,210.41,210.35,4.44479507]
[1756902859679,4.44479507,210.37,210.34,0.03]
[1756902860000,4.44479507,210.35,210.34,0.03]
[1756902860498,5.10479507,210.35,210.34,0.03]
[1756902865115,0.66,210.35,210.34,0.03]
[1756902865811,5.10479507,210.35,210.34,0.03]
[1756902868999,0.66,210.35,210.34,0.03]
[1756902869196,5.10479507,210.35,210.34,0.03]
[1756902871319,9.85877652,210.35,210.34,0.03]
[1756902873192,23.45437053,210.35,210.34,0.03]
[1756902876915,60.41437053,210.35,210.34,0.03]
[1756902884511,55.96957546,210.35,210.34,0.03]
[1756902884714,60.41437053,210.35,210.34,0.03]
[1756902885336,62.32108455,210.35,210.34,0.03]
[1756902888510,26.0,210.32,210.31,0.03]
[1756902888703,67.34479507,210.32,210.31,0.03]
[1756902888917,68.04479507,210.32,210.31,0.03]
[1756902889335,4.44479507,210.32,210.31,0.03]
[1756902889503,6.35150908,210.33,210.31,0.39]
[1756902889701,1.90671401,210.33,210.32,0.36]
[1756902889902,41.36479507,210.34,210.32,0.36]
[1756902890102,4.44479507,210.33,210.31,0.03]
[1756902890327,4.44479507,210.32,210.31,0.03]
[1756902891928,36.92,210.34,210.31,0.39]
[1756902892320,36.92,210.34,210.32,0.36]
[1756902892506,41.36479507,210.35,210.32,0.36]
[1756902893310,4.44479507,210.34,210.31,0.03]
[1756902894319,46.81879679,210.35,210.31,0.03]
[1756902894720,46.11879679,210.35,210.31,0.03]
[1756902894926,26.0,210.36,210.32,4.80479507]
[1756902895123,62.92,210.36,210.33,0.36]
[1756902895319,4.47479507,210.4,210.34,4.80479507]
[1756902895320,12.88953269,210.4,210.34,4.80479507]
[1756902895512,46.81798662,210.39,210.33,4.44479507]
[1756902895707,4.44479507,210.37,210.31,4.47479507]
[1756902895924,4.44479507,210.35,210.31,0.03]
[1756902896127,4.44479507,210.32,210.31,0.03]
[1756902896333,46.11945463,210.32,210.31,0.03]
[1756902896515,41.67465956,210.32,210.31,0.03]
[1756902897433,36.94,210.32,210.31,0.03]
[1756902898018,62.96,210.35,210.31,4.83479507]
[1756902898539,62.96,210.35,210.31,0.03]
[1756902898734,36.96,210.35,210.31,4.47479507]
[1756902898918,36.96,210.35,210.31,4.83479507]
[1756902900216,41.71401757,210.35,210.31,0.03]
[1756902900914,42.41401757,210.35,210.31,0.03]
[1756902901114,46.85881264,210.35,210.31,0.03]
[1756902901352,46.15881264,210.35,210.31,0.03]
[1756902901646,0.7,210.34,210.31,0.03]
[1756902902080,37.66,210.35,210.31,0.03]
[1756902902349,5.14479507,210.34,210.31,0.03]
[1756902902513,4.44479507,210.33,210.31,0.03]
[1756902902724,4.44479507,210.32,210.31,0.03]
[1756902902927,5.14479507,210.32,210.31,0.03]
[1756902903127,0.7,210.32,210.31,0.03]
[1756902904016,5.45465956,210.32,210.31,0.03]
[1756902904220,9.89945463,210.32,210.31,0.03]
[1756902908063,4.44479507,210.32,210.31,0.03]
[1756902908252,36.94,210.32,210.31,0.03]
[1756902908463,37.64,210.32,210.31,0.03]
[1756902909034,4.44479507,210.33,210.31,0.03]
[1756902909258,62.94,210.33,210.31,0.03]
[1756902909541,36.94,210.34,210.31,0.03]
[1756902909740,36.96,210.35,210.32,4.44479507]
[1756902909970,37.66,210.35,210.31,0.03]
[1756902910143,0.7,210.34,210.31,0.03]
[1756902911164,36.96,210.35,210.31,0.03]
[1756902911849,41.71400047,210.35,210.31,0.03]
[1756902912044,5.11479507,210.34,210.31,0.03]
[1756902912236,41.40479507,210.33,210.31,0.03]
[1756902912643,0.67,210.32,210.31,0.03]
[1756902912862,5.42465956,210.32,210.31,0.03]
[1756902913253,0.67,210.32,210.31,0.03]
[1756902913444,36.96,210.33,210.31,0.03]
[1756902913850,0.67,210.32,210.31,0.03]
[1756902914238,5.42392921,210.36,210.31,4.47479507]
[1756902914434,36.96,210.34,210.31,0.03]
[1756902914660,41.40479507,210.34,210.31,0.03]
[1756902914941,0.67,210.33,210.31,0.03]
[1756902916765,0.67,210.32,210.31,0.03]
[1756902917155,5.42465956,210.32,210.31,0.03]
[1756902917453,37.63,210.32,210.31,0.03]
[1756902917650,5.42419477,210.35,210.31,0.03]
[1756902917866,36.94,210.34,210.31,0.03]
[1756902918164,2.84569185,210.33,210.31,0.03]
[1756902918352,36.96,210.32,210.31,0.03]
[1756902918536,37.63,210.32,210.31,0.03]
[1756902918940,40.47569185,210.32,210.31,0.03]
[1756902919163,45.23035141,210.32,210.31,0.03]
[1756902919868,42.38465956,210.32,210.31,0.03]
[1756902920043,36.96,210.32,210.31,0.03]
[1756902921068,37.63,210.32,210.31,0.03]
[1756902921540,42.38465956,210.32,210.31,0.03]
[1756902923649,45.23035141,210.32,210.31,0.03]
[1756902926744,36.96,210.32,210.31,0.03]
[1756902926944,0.67,210.34,210.31,0.03]
[1756902927160,36.94,210.33,210.31,0.03]
[1756902927358,37.61,210.33,210.31,0.03]
[1756902927763,30.02994255,210.35,210.31,0.39]
[1756902927764,8.78394921,210.35,210.31,0.39]
[1756902927968,36.94,210.34,210.31,0.39]
[1756902928145,0.06,210.35,210.31,0.03]
[1756902928341,37.0,210.35,210.31,0.39]
[1756902929151,0.06,210.35,210.32,2.84569185]
[1756902929359,2.84569185,210.33,210.31,0.03]
[1756902929545,3.51569185,210.33,210.31,0.03]
[1756902929750,0.67,210.33,210.31,0.03]
[1756902930351,4.75453455,210.33,210.31,0.03]
[1756902930547,0.67,210.32,210.31,0.03]
[1756902930971,4.75453455,210.33,210.31,0.03]
[1756902931483,0.67,210.32,210.31,0.03]
[1756902932571,4.75453455,210.33,210.31,0.03]
[1756902933073,5.42453455,210.33,210.31,0.03]
[1756902933654,0.67,210.33,210.31,0.03]
[1756902935873,0.06,210.35,210.31,0.03]
[1756902936074,37.06,210.35,210.31,3.23569185]
[1756902936270,40.57569185,210.35,210.31,0.03]
[1756902936475,0.67,210.34,210.31,0.03]
[1756902937053,39.90569185,210.35,210.31,0.03]
[1756902937271,37.06,210.35,210.32,3.20569185]
[1756902937476,0.06,210.35,210.32,3.20569185]
[1756902937859,0.06,210.35,210.32,2.84569185]
[1756902938870,0.73,210.35,210.31,0.03]
[1756902940558,0.06,210.35,210.34,2.84569185]
[1756902940881,0.06,210.35,210.33,2.84569185]
[1756902941187,0.73,210.35,210.32,2.84569185]
[1756902941561,0.06,210.35,210.32,2.84569185]
[1756902941758,0.06,210.35,210.31,0.03]
[1756902941962,0.66,210.34,210.31,2.87569185]
[1756902942187,0.66,210.34,210.31,0.03]
[1756902942676,0.06,210.35,210.31,0.03]
[1756902942890,0.72,210.35,210.31,2.87569185]
[1756902945587,0.06,210.35,210.34,2.84569185]
[1756902946283,0.06,210.35,210.34,3.20569185]
[1756902946485,0.06,210.35,210.34,7.95989932]
[1756902947995,0.06,210.35,210.34,87.65989932]
[1756902949173,0.06,210.35,210.34,101.25549333]
[1756902950772,0.06,210.35,210.34,138.23549333]
[1756902954694,0.06,210.38,210.34,138.23549333]
[1756902954695,0.06,210.38,210.35,13.59559401]
[1756902954891,0.06,210.38,210.37,2.84569185]
[1756902955080,0.06,210.38,210.37,79.7]
[1756902955394,0.06,210.38,210.37,119.48569185]
[1756902956477,0.06,210.38,210.37,124.23922134]
[1756902957100,0.06,210.38,210.37,124.59922134]
[1756902957611,0.06,210.38,210.37,138.19481535]
[1756902960480,0.06,210.4,210.39,44.34867162]
[1756902960698,0.06,210.4,210.39,84.11436347]
[1756902960905,0.06,210.43,210.4,13.59559401]
[1756902961113,0.06,210.43,210.42,2.84569185]
[1756902961311,0.06,210.43,210.42,16.44128586]
[1756902961608,0.06,210.43,210.42,96.50128586]
[1756902962294,0.06,210.43,210.42,133.06128586]
[1756902962514,0.06,210.43,210.42,138.17368582]
[1756902962694,1e-08,210.43,210.42,138.17368582]
[1756902962891,0.06,210.46,210.43,13.59559401]
[1756902963092,0.06,210.46,210.45,16.44128586]
[1756902963294,0.06,210.46,210.45,96.14128586]
[1756902964389,0.06,210.46,210.45,96.50128586]
[1756902964585,0.06,210.46,210.45,101.25300835]
[1756902965292,0.06,210.46,210.45,100.89300835]
[1756902966987,0.06,210.46,210.45,101.25300835]
[1756902967511,0.06,210.48,210.47,39.59559401]
[1756902967814,0.06,210.48,210.47,90.76405326]
[1756902968518,0.72,210.48,210.47,65.76569185]
[1756902968724,0.06,210.48,210.47,150.21696281]
[1756902970915,0.06,210.48,210.47,163.81255682]
[1756902972921,0.77,210.48,210.47,62.9]
[1756902973093,0.77,210.48,210.47,65.74569185]